fUSD/lending_fUSD_20241224
["ID","MTS","AMOUNT","RATE_DAILY","PERIOD"]
[346491315,1735007455159,-151.0,0.00014246,2]
[346491317,1735007455168,-151.0,0.00014246,2]
[346491318,1735007455177,-151.0,0.00014246,2]
[346491320,1735007455186,-2315.01,0.00014246,2]
[346491321,1735007455196,-601.31,0.00014246,2]
[346491323,1735007455205,-10263.48,0.00014246,2]
[346491324,1735007455215,-712.83,0.00014246,2]
[346491344,1735007455510,-1007.54,0.00014246,2]
[346491346,1735007455519,-10922.53,0.00014246,2]
[346491347,1735007455528,-7363.44,0.00014246,2]
[346491349,1735007455538,-500.0,0.00014246,2]
[346491350,1735007455547,-688.94,0.00014246,2]
[346491352,1735007455557,-1032.65,0.00014246,2]
[346491354,1735007455566,-4342.99,0.00014246,2]
[346491355,1735007455575,-10449.35,0.00014246,2]
[346491357,1735007455585,-588.1,0.00014246,2]
[346491359,1735007455594,-3434.19,0.00014246,2]
[346491360,1735007455602,-500.0,0.00014246,2]
[346491362,1735007455611,-3118.55,0.00014246,2]
[346491364,1735007455620,-1506.32,0.00014246,2]
[346491365,1735007455630,-4466.69,0.00014246,2]
[346491367,1735007455639,-21837.29,0.00014246,2]
[346491368,1735007455648,-551.66,0.00014246,2]
[346491370,1735007455657,-1631.28,0.00014246,2]
[346491372,1735007455667,-6544.83,0.00014246,2]
[346491373,1735007455676,-500.0,0.00014246,2]
[346491375,1735007455685,-652.5,0.00014246,2]
[346491377,1735007455694,-512.94,0.00014246,2]
[346491378,1735007455703,-770.65,0.00014246,2]
[346491380,1735007455712,-1839.01,0.00014246,2]
[346491382,1735007455722,-1031.69,0.00014246,2]
[346491383,1735007455731,-150.15362827,0.00014246,2]
[346491385,1735007455741,-26195.86,0.00014246,2]
[346491387,1735007455750,-904.49,0.00014246,2]
[346491388,1735007455759,-535.15,0.00014246,2]
[346491390,1735007455768,-500.0,0.00014246,2]
[346491392,1735007455777,-2126.8,0.00014246,2]
[346491393,1735007455787,-150.0,0.00014246,2]
[346491395,1735007455796,-5169.23,0.00014246,2]
[346491396,1735007455805,-150.0,0.00014246,2]
[346491398,1735007455814,-2347.0,0.00014246,2]
[346491400,1735007455823,-815.25,0.00014246,2]
[346491401,1735007455832,-500.0,0.00014246,2]
[346491403,1735007455841,-2728.18,0.00014246,2]
[346491405,1735007455850,-608.77,0.00014246,2]
[346491406,1735007455859,-831.94,0.00014246,2]
[346491408,1735007455868,-500.0,0.00014246,2]
[346491410,1735007455877,-775.03,0.00014246,2]
[346491411,1735007455886,-16031.61,0.00014246,2]
[346491413,1735007455895,-1344.0,0.00014246,2]
[346491415,1735007455904,-500.0,0.00014246,2]
[346491416,1735007455913,-2600.82,0.00014246,2]
[346491418,1735007455923,-1530.64,0.00014246,2]
[346491420,1735007455932,-1498.97,0.00014246,2]
[346491421,1735007455941,-1261.14,0.00014246,2]
[346491423,1735007455950,-980.94,0.00014246,2]
[346491425,1735007455959,-687.04,0.00014246,2]
[346491426,1735007455968,-835.46,0.00014246,2]
[346491427,1735007455978,-746.28,0.00014246,2]
[346491429,1735007455988,-1057.0,0.00014247,2]
[346491430,1735007455997,-500.0,0.00014248,2]
[346491432,1735007456006,-1406.3460362,0.00014249,2]
[346491433,1735007456016,-626.5302749,0.00014249,2]
[346491434,1735007456025,-683.18773014,0.00014269,2]
[346491435,1735007456035,-791.472895,0.00014279,2]
[346491436,1735007456044,-729.2403274,0.00014289,2]
[346491437,1735007456054,-4310.00346645,0.00014298,2]
[346491438,1735007456063,-547.91,0.00014319,2]
[346491439,1735007456072,-500.0,0.00014319,2]
[346491440,1735007456082,-500.0,0.00014319,2]
[346491441,1735007456091,-227.06781014,0.00014324,2]
[346491442,1735007456100,-160.03429724,0.00014325,2]
[346491443,1735007456110,-275.69880611,0.00014325,2]
[346491444,1735007456119,-161.38738301,0.00014325,2]
[346491445,1735007456128,-500.0,0.00014325,2]
[346491446,1735007456137,-501.27358101,0.00014346,2]
[346491447,1735007456146,-254.55572019,0.0001435,2]
[346491448,1735007456155,-5694.64021943,0.00014359,2]
[346491449,1735007456164,-505.05,0.00014364,2]
[346491450,1735007456173,-475.93,0.00014403,2]
[346491451,1735007456182,-151.0,0.0001445,2]
[346491452,1735007456191,-547.91,0.00014456,2]
[346491453,1735007456200,-160.30315649,0.00014459,2]
[346491454,1735007456210,-500.82049059,0.00014459,2]
[346491455,1735007456219,-500.0,0.00014459,2]
[346491456,1735007456227,-506.89667173,0.00014459,2]
[346491457,1735007456237,-160.30391308,0.00014459,2]
[346491458,1735007456248,-500.0,0.00014484,2]
[346491459,1735007456257,-500.0,0.00014484,2]
[346491460,1735007456266,-542.88521461,0.0001451,2]
[346491461,1735007456275,-500.0,0.00014511,2]
[346491462,1735007456284,-502.7377928,0.00014511,2]
[346491463,1735007456293,-500.0,0.00014511,2]
[346491464,1735007456302,-510.05201737,0.00014511,2]
[346491465,1735007456312,-5694.64021943,0.00014511,2]
[346491466,1735007456321,-500.0,0.00014519,2]
[346491467,1735007456330,-500.0,0.00014519,2]
[346491468,1735007456339,-150.0,0.0001452,2]
[346491469,1735007456348,-500.0,0.0001452,2]
[346491470,1735007456357,-150.0,0.0001452,2]
[346491471,1735007456367,-2347.0,0.0001452,2]
[346491472,1735007456376,-1344.0,0.0001452,2]
[346491473,1735007456386,-500.0,0.0001452,2]
[346491474,1735007456395,-500.0,0.0001452,2]
[346491475,1735007456409,-618.88,0.0001452,2]
[346491476,1735007456418,-500.0,0.0001452,2]
[346491477,1735007456428,-500.0,0.0001452,2]
[346491478,1735007456437,-500.0,0.0001452,2]
[346491479,1735007456446,-616.73,0.0001452,2]
[346491480,1735007456456,-500.0,0.0001452,2]
[346491481,1735007456465,-652.108415,0.0001452,2]
[346491482,1735007456474,-500.0,0.0001452,2]
[346491483,1735007456484,-546.46,0.0001452,2]
[346491484,1735007456495,-687.91,0.0001452,2]
[346491485,1735007456504,-500.0,0.0001452,2]
[346491486,1735007456514,-644.092414,0.0001452,2]
[346491487,1735007456523,-500.0,0.0001452,2]
[346491488,1735007456532,-500.0,0.0001452,2]
[346491489,1735007456541,-500.0,0.0001452,2]
[346491490,1735007456550,-546.67,0.0001452,2]
[346491491,1735007456560,-500.0,0.0001452,2]
[346491492,1735007456570,-553.98,0.0001452,2]
[346491493,1735007456579,-597.92,0.0001452,2]
[346491494,1735007456588,-500.0,0.0001452,2]
[346491495,1735007456597,-500.0,0.0001452,2]
[346491496,1735007456607,-593.7,0.0001452,2]
[346491497,1735007456616,-500.0,0.0001452,2]
[346491498,1735007456625,-500.0,0.0001452,2]
[346491499,1735007456635,-500.0,0.0001452,2]
[346491500,1735007456644,-500.0,0.0001452,2]
[346491501,1735007456653,-735.6,0.0001452,2]
[346491502,1735007456662,-500.0,0.0001452,2]
[346491503,1735007456671,-588.07,0.0001452,2]
[346491504,1735007456680,-500.0,0.0001452,2]
[346491505,1735007456689,-500.0,0.0001452,2]
[346491506,1735007456698,-500.0,0.0001452,2]
[346491507,1735007456708,-500.0,0.0001452,2]
[346491508,1735007456717,-500.0,0.0001452,2]
[346491509,1735007456726,-534.44,0.0001452,2]
[346491510,1735007456735,-573.35,0.0001452,2]
[346491511,1735007456745,-500.0,0.0001452,2]
[346491512,1735007456754,-500.0,0.0001452,2]
[346491514,1735007456763,-500.0,0.0001452,2]
[346491515,1735007456772,-500.0,0.0001452,2]
[346491516,1735007456782,-500.0,0.0001452,2]
[346491517,1735007456791,-500.0,0.0001452,2]
[346491518,1735007456800,-500.0,0.0001452,2]
[346491519,1735007456809,-500.0,0.0001452,2]
[346491520,1735007456818,-647.46,0.0001452,2]
[346491522,1735007456827,-500.0,0.0001452,2]
[346491523,1735007456836,-500.0,0.0001452,2]
[346491525,1735007456846,-500.0,0.0001452,2]
[346491527,1735007456855,-500.0,0.0001452,2]
[346491529,1735007456864,-500.0,0.0001452,2]
[346491531,1735007456873,-725.47,0.0001452,2]
[346491533,1735007456882,-500.0,0.0001452,2]
[346491535,1735007456891,-500.0,0.0001452,2]
[346491537,1735007456900,-500.0,0.0001452,2]
[346491539,1735007456909,-500.0,0.0001452,2]
[346491541,1735007456918,-738.64,0.0001452,2]
[346491543,1735007456927,-500.0,0.0001452,2]
[346491545,1735007456936,-500.0,0.0001452,2]
[346491547,1735007456945,-783.25,0.0001452,2]
[346491549,1735007456955,-500.0,0.0001452,2]
[346491551,1735007456964,-500.0,0.0001452,2]
[346491553,1735007456973,-689.83,0.0001452,2]
[346491555,1735007456982,-500.0,0.0001452,2]
[346491557,1735007456992,-500.0,0.0001452,2]
[346491559,1735007457001,-553.21,0.0001452,2]
[346491561,1735007457010,-652.3,0.0001452,2]
[346491563,1735007457019,-500.0,0.0001452,2]
[346491565,1735007457028,-500.0,0.0001452,2]
[346491567,1735007457038,-1683.36,0.0001452,2]
[346491569,1735007457047,-500.0,0.0001452,2]
[346491571,1735007457057,-500.0,0.0001452,2]
[346491573,1735007457066,-579.52,0.0001452,2]
[346491574,1735007457075,-622.4,0.0001452,2]
[346491575,1735007457084,-735.01,0.0001452,2]
[346491576,1735007457094,-717.05,0.0001452,2]
[346491577,1735007457103,-756.85,0.0001452,2]
[346491578,1735007457112,-615.06,0.0001452,2]
[346491579,1735007457122,-768.22,0.0001452,2]
[346491580,1735007457131,-500.0,0.0001452,2]
[346491581,1735007457140,-500.0,0.0001452,2]
[346491582,1735007457150,-500.0,0.0001452,2]
[346491583,1735007457160,-1363.94,0.0001452,2]
[346491584,1735007457170,-500.0,0.0001452,2]
[346491585,1735007457179,-500.0,0.0001452,2]
[346491586,1735007457189,-634.43,0.0001452,2]
[346491587,1735007457198,-500.0,0.0001452,2]
[346491588,1735007457208,-1192.57,0.0001452,2]
[346491589,1735007457217,-500.0,0.0001452,2]
[346491590,1735007457227,-500.0,0.0001452,2]
[346491591,1735007457237,-1089.65,0.0001452,2]
[346491592,1735007457248,-480.51981686,0.0001452,2]
[346491593,1735007457257,-500.0,0.0001452,2]
[346491594,1735007457266,-500.0,0.0001452,2]
[346491595,1735007457276,-1043.27,0.0001452,2]
[346491596,1735007457285,-500.0,0.0001452,2]
[346491597,1735007457295,-500.0,0.0001452,2]
[346491598,1735007457305,-500.0,0.0001452,2]
[346491599,1735007457314,-500.0,0.0001452,2]
[346491600,1735007457323,-500.0,0.0001452,2]
[346491601,1735007457332,-500.0,0.0001452,2]
[346491602,1735007457342,-500.0,0.0001452,2]
[346491603,1735007457351,-500.0,0.0001452,2]
[346491604,1735007457361,-500.0,0.0001452,2]
[346491605,1735007457371,-500.0,0.0001452,2]
[346491606,1735007457380,-693.79,0.0001452,2]
[346491607,1735007457390,-1426.47,0.0001452,2]
[346491608,1735007457401,-592.95,0.0001452,2]
[346491609,1735007457412,-500.0,0.0001452,2]
[346491610,1735007457421,-500.0,0.0001452,2]
[346491611,1735007457431,-1061.26,0.0001452,2]
[346491612,1735007457441,-868.59,0.0001452,2]
[346491613,1735007457450,-500.0,0.0001452,2]
[346491614,1735007457460,-500.0,0.0001452,2]
[346491615,1735007457469,-821.96,0.0001452,2]
[346491616,1735007457479,-678.27,0.0001452,2]
[346491617,1735007457488,-558.93,0.0001452,2]
[346491618,1735007457498,-500.0,0.0001452,2]
[346491619,1735007457507,-500.0,0.0001452,2]
[346491620,1735007457517,-500.0,0.0001452,2]
[346491621,1735007457526,-500.0,0.0001452,2]
[346491622,1735007457535,-500.0,0.0001452,2]
[346491623,1735007457544,-598.82,0.0001452,2]
[346491624,1735007457554,-500.0,0.0001452,2]
[346491625,1735007457563,-535.47,0.0001452,2]
[346491626,1735007457573,-500.0,0.0001452,2]
[346491627,1735007457582,-500.0,0.0001452,2]
[346491628,1735007457591,-1017.52,0.0001452,2]
[346491629,1735007457600,-1099.52,0.0001452,2]
[346491630,1735007457610,-569.88,0.0001452,2]
[346491631,1735007457619,-1266.75,0.0001452,2]
[346491632,1735007457628,-500.0,0.0001452,2]
[346491633,1735007457638,-500.0,0.0001452,2]
[346491634,1735007457647,-500.0,0.0001452,2]
[346491635,1735007457656,-894.34,0.0001452,2]
[346491636,1735007457665,-1090.38,0.0001452,2]
[346491637,1735007457674,-500.0,0.0001452,2]
[346491638,1735007457683,-500.0,0.0001452,2]
[346491639,1735007457693,-1064.1,0.0001452,2]
[346491640,1735007457702,-667.83,0.0001452,2]
[346491641,1735007457712,-634.11,0.0001452,2]
[346491642,1735007457721,-500.0,0.0001452,2]
[346491643,1735007457730,-500.0,0.0001452,2]
[346491644,1735007457739,-848.75,0.0001452,2]
[346491645,1735007457749,-593.38,0.0001452,2]
[346491646,1735007457823,-500.0,0.0001452,2]
[346491647,1735007457833,-617.7,0.0001452,2]
[346491648,1735007457842,-1042.67,0.0001452,2]
[346491649,1735007457851,-592.82,0.0001452,2]
[346491650,1735007457860,-622.81,0.0001452,2]
[346491651,1735007457870,-553.18,0.0001452,2]
[346491652,1735007457879,-500.0,0.0001452,2]
[346491653,1735007457888,-500.0,0.0001452,2]
[346491654,1735007457897,-500.0,0.0001452,2]
[346491655,1735007457907,-904.21,0.0001452,2]
[346491656,1735007457916,-614.04,0.0001452,2]
[346491657,1735007457925,-500.0,0.0001452,2]
[346491658,1735007457935,-500.0,0.0001452,2]
[346491659,1735007457944,-418.07233589,0.0001452,2]
[346491660,1735007457953,-500.0,0.0001452,2]
[346491661,1735007457962,-500.0,0.0001452,2]
[346491662,1735007457971,-500.0,0.0001452,2]
[346491663,1735007457980,-660.73,0.0001452,2]
[346491664,1735007457990,-500.0,0.0001452,2]
[346491665,1735007457999,-668.21,0.0001452,2]
[346491666,1735007458008,-500.0,0.0001452,2]
[346491667,1735007458017,-500.0,0.0001452,2]
[346491668,1735007458027,-669.58,0.0001452,2]
[346491669,1735007458036,-500.0,0.0001452,2]
[346491670,1735007458045,-1545.62,0.0001452,2]
[346491671,1735007458054,-500.0,0.0001452,2]
[346491672,1735007458064,-994.78,0.0001452,2]
[346491673,1735007458073,-814.77,0.0001452,2]
[346491674,1735007458082,-1452.44,0.0001452,2]
[346491675,1735007458091,-500.0,0.0001452,2]
[346491676,1735007458100,-500.0,0.0001452,2]
[346491677,1735007458109,-600.04,0.0001452,2]
[346491678,1735007458119,-500.0,0.0001452,2]
[346491679,1735007458128,-500.0,0.0001452,2]
[346491680,1735007458137,-1120.06,0.0001452,2]
[346491681,1735007458146,-994.95,0.0001452,2]
[346491682,1735007458155,-684.05,0.0001452,2]
[346491683,1735007458165,-500.0,0.0001452,2]
[346491684,1735007458174,-500.0,0.0001452,2]
[346491685,1735007458183,-795.23,0.0001452,2]
[346491686,1735007458192,-825.42,0.0001452,2]
[346491687,1735007458202,-1267.91,0.0001452,2]
[346491688,1735007458211,-500.0,0.0001452,2]
[346491689,1735007458220,-1564.05,0.0001452,2]
[346491690,1735007458229,-500.0,0.0001452,2]
[346491691,1735007458239,-1598.3,0.0001452,2]
[346491692,1735007458249,-500.0,0.0001452,2]
[346491693,1735007458257,-606.72,0.0001452,2]
[346491694,1735007458266,-581.65,0.0001452,2]
[346491695,1735007458275,-1196.67,0.0001452,2]
[346491696,1735007458283,-1141.42,0.0001452,2]
[346491697,1735007458292,-629.93,0.0001452,2]
[346491698,1735007458301,-1273.09,0.0001452,2]
[346491699,1735007458310,-744.09,0.0001452,2]
[346491700,1735007458319,-500.0,0.0001452,2]
[346491701,1735007458328,-500.0,0.0001452,2]
[346491702,1735007458337,-500.0,0.0001452,2]
[346491703,1735007458346,-500.0,0.0001452,2]
[346491704,1735007458355,-881.38,0.0001452,2]
[346491705,1735007458364,-844.67,0.0001452,2]
[346491706,1735007458373,-500.0,0.0001452,2]
[346491707,1735007458382,-500.0,0.0001452,2]
[346491708,1735007458391,-967.85,0.0001452,2]
[346491709,1735007458405,-624.54,0.0001452,2]
[346491710,1735007458414,-500.0,0.0001452,2]
[346491711,1735007458423,-500.0,0.0001452,2]
[346491712,1735007458432,-870.59,0.0001452,2]
[346491713,1735007458441,-743.33,0.0001452,2]
[346491714,1735007458451,-500.0,0.0001452,2]
[346491715,1735007458460,-500.0,0.0001452,2]
[346491716,1735007458469,-619.7,0.0001452,2]
[346491717,1735007458480,-500.0,0.0001452,2]
[346491718,1735007458490,-589.61,0.0001452,2]
[346491719,1735007458499,-500.0,0.0001452,2]
[346491720,1735007458509,-500.0,0.0001452,2]
[346491721,1735007458518,-500.0,0.0001452,2]
[346491722,1735007458527,-500.0,0.0001452,2]
[346491723,1735007458537,-663.65,0.0001452,2]
[346491724,1735007458546,-846.64,0.0001452,2]
[346491725,1735007458555,-500.0,0.0001452,2]
[346491726,1735007458565,-822.38,0.0001452,2]
[346491727,1735007458574,-545.12,0.0001452,2]
[346491728,1735007458583,-500.0,0.0001452,2]
[346491729,1735007458592,-857.8,0.0001452,2]
[346491730,1735007458601,-500.0,0.0001452,2]
[346491731,1735007458611,-628.91,0.0001452,2]
[346491732,1735007458620,-500.03,0.0001452,2]
[346491733,1735007458629,-500.0,0.0001452,2]
[346491734,1735007458638,-578.3,0.0001452,2]
[346491735,1735007458647,-664.63,0.0001452,2]
[346491736,1735007458655,-500.0,0.0001452,2]
[346491737,1735007458665,-560.21,0.0001452,2]
[346491738,1735007458675,-500.0,0.0001452,2]
[346491739,1735007458684,-1621.52,0.0001452,2]
[346491740,1735007458694,-500.0,0.0001452,2]
[346491741,1735007458703,-618.84,0.0001452,2]
[346491742,1735007458712,-500.0,0.0001452,2]
[346491743,1735007458722,-811.41,0.0001452,2]
[346491744,1735007458731,-831.51,0.0001452,2]
[346491745,1735007458740,-862.2,0.0001452,2]
[346491746,1735007458749,-500.0,0.0001452,2]
[346491747,1735007458758,-500.0,0.0001452,2]
[346491748,1735007458767,-500.0,0.0001452,2]
[346491749,1735007458776,-840.98,0.0001452,2]
[346491750,1735007458785,-500.0,0.0001452,2]
[346491751,1735007458794,-710.37,0.0001452,2]
[346491752,1735007458804,-500.0,0.0001452,2]
[346491753,1735007458812,-511.09,0.0001452,2]
[346491754,1735007458823,-500.0,0.0001452,2]
[346491755,1735007458833,-500.0,0.0001452,2]
[346491756,1735007458842,-500.0,0.0001452,2]
[346491757,1735007458852,-675.71,0.0001452,2]
[346491758,1735007458862,-1144.42,0.0001452,2]
[346491759,1735007458873,-1450.49,0.0001452,2]
[346491760,1735007458882,-915.2,0.0001452,2]
[346491761,1735007458891,-521.96,0.0001452,2]
[346491762,1735007458901,-608.78,0.0001452,2]
[346491763,1735007458910,-652.93,0.0001452,2]
[346491764,1735007458919,-759.0,0.0001452,2]
[346491765,1735007458928,-583.2,0.0001452,2]
[346491766,1735007458937,-679.37,0.0001452,2]
[346491767,1735007458946,-569.4,0.0001452,2]
[346491768,1735007458956,-701.37,0.0001452,2]
[346491769,1735007458966,-500.0,0.0001452,2]
[346491770,1735007458975,-693.77,0.0001452,2]
[346491771,1735007458985,-1679.98,0.0001452,2]
[346491772,1735007458994,-500.0,0.0001452,2]
[346491773,1735007459003,-502.12,0.0001452,2]
[346491774,1735007459012,-524.76,0.0001452,2]
[346491775,1735007459021,-500.0,0.0001452,2]
[346491776,1735007459030,-1154.4,0.0001452,2]
[346491777,1735007459039,-709.56,0.0001452,2]
[346491778,1735007459048,-500.0,0.0001452,2]
[346491779,1735007459057,-1301.45,0.0001452,2]
[346491780,1735007459066,-500.0,0.0001452,2]
[346491781,1735007459075,-500.0,0.0001452,2]
[346491782,1735007459084,-500.0,0.0001452,2]
[346491783,1735007459094,-611.77,0.0001452,2]
[346491784,1735007459103,-963.98,0.0001452,2]
[346491785,1735007459112,-7171.2,0.0001452,2]
[346491786,1735007459121,-710.65,0.0001452,2]
[346491787,1735007459130,-618.56,0.0001452,2]
[346491788,1735007459140,-500.0,0.0001452,2]
[346491789,1735007459149,-500.0,0.0001452,2]
[346491790,1735007459159,-500.0,0.0001452,2]
[346491791,1735007459169,-726.77,0.0001452,2]
[346491792,1735007459178,-500.0,0.0001452,2]
[346491793,1735007459187,-500.0,0.0001452,2]
[346491794,1735007459196,-669.37,0.0001452,2]
[346491795,1735007459206,-500.0,0.0001452,2]
[346491796,1735007459215,-500.0,0.0001452,2]
[346491797,1735007459224,-500.0,0.0001452,2]
[346491798,1735007459233,-1646.6,0.0001452,2]
[346491799,1735007459242,-768.51,0.0001452,2]
[346491800,1735007459253,-954.73,0.0001452,2]
[346491801,1735007459263,-7137.83,0.0001452,2]
[346491802,1735007459272,-501.32,0.0001452,2]
[346491803,1735007459281,-500.0,0.0001452,2]
[346491804,1735007459290,-790.41,0.0001452,2]
[346491805,1735007459300,-1709.11,0.0001452,2]
[346491806,1735007459309,-899.06,0.0001452,2]
[346491807,1735007459318,-1723.42,0.0001452,2]
[346491808,1735007459327,-630.14,0.0001452,2]
[346491809,1735007459336,-500.0,0.0001452,2]
[346491810,1735007459346,-2292.47,0.0001452,2]
[346491811,1735007459355,-521.93,0.0001452,2]
[346491812,1735007459365,-500.0,0.0001452,2]
[346491813,1735007459374,-500.0,0.0001452,2]
[346491814,1735007459384,-4440.78,0.0001452,2]
[346491815,1735007459393,-1044.76,0.0001452,2]
[346491816,1735007459409,-500.0,0.0001452,2]
[346491817,1735007459419,-4785.48,0.0001452,2]
[346491818,1735007459428,-821.86,0.0001452,2]
[346491819,1735007459437,-1038.34,0.0001452,2]
[346491820,1735007459447,-500.0,0.0001452,2]
[346491821,1735007459457,-620.5,0.0001452,2]
[346491822,1735007459466,-1762.88,0.0001452,2]
[346491823,1735007459478,-532.46,0.0001452,2]
[346491824,1735007459487,-249.14602031,0.0001452,2]
[346491825,1735007459499,-3288.82,0.0001452,2]
[346491826,1735007459508,-1236.75,0.0001452,2]
[346491827,1735007459517,-581.56344146,0.0001452,2]
[346491828,1735007459527,-7839.9,0.0001452,2]
[346491829,1735007459535,-720.23,0.0001452,2]
[346491830,1735007459545,-500.0,0.0001452,2]
[346491831,1735007459554,-996.23,0.0001452,2]
[346491832,1735007459564,-727.08,0.0001452,2]
[346491833,1735007459573,-500.0,0.0001452,2]
[346491834,1735007459583,-770.83,0.0001452,2]
[346491835,1735007459592,-500.0,0.0001452,2]
[346491836,1735007459602,-1040.44,0.0001452,2]
[346491837,1735007459611,-3105.17,0.0001452,2]
[346491838,1735007459620,-3382.29,0.0001452,2]
[346491839,1735007459629,-685.18,0.0001452,2]
[346491840,1735007459638,-500.0,0.0001452,2]
[346491841,1735007459647,-718.55,0.0001452,2]
[346491842,1735007459656,-1300.07,0.0001452,2]
[346491843,1735007459666,-500.0,0.0001452,2]
[346491844,1735007459675,-500.0,0.0001452,2]
[346491845,1735007459684,-2175.65,0.0001452,2]
[346491846,1735007459693,-547.29,0.0001452,2]
[346491847,1735007459702,-1337.16,0.0001452,2]
[346491848,1735007459717,-1260.32,0.0001452,2]
[346491849,1735007459726,-1186.31,0.0001452,2]
[346491850,1735007459735,-703.31,0.0001452,2]
[346491851,1735007459747,-790.65,0.0001452,2]
[346491852,1735007459756,-2693.62,0.0001452,2]
[346491853,1735007459766,-2195.68,0.0001452,2]
[346491854,1735007459775,-500.0,0.0001452,2]
[346491855,1735007459784,-2599.99,0.0001452,2]
[346491856,1735007459794,-500.0,0.0001452,2]
[346491857,1735007459803,-5027.26,0.0001452,2]
[346491858,1735007459812,-500.0,0.0001452,2]
[346491859,1735007459821,-18698.72,0.0001452,2]
[346491860,1735007459831,-1181.22,0.0001452,2]
[346491861,1735007459840,-970.77,0.0001452,2]
[346491862,1735007459849,-505.86,0.0001452,2]
[346491863,1735007459859,-506.9,0.0001452,2]
[346491864,1735007459868,-500.0,0.0001452,2]
[346491865,1735007459878,-500.0,0.0001452,2]
[346491866,1735007459887,-776.44,0.0001452,2]
[346491867,1735007459896,-818.27,0.0001452,2]
[346491868,1735007459905,-644.59,0.0001452,2]
[346491869,1735007459915,-1647.02,0.0001452,2]
[346491870,1735007459924,-500.0,0.0001452,2]
[346491871,1735007459934,-992.28,0.0001452,2]
[346491872,1735007459944,-4092.33,0.0001452,2]
[346491873,1735007459953,-976.56,0.0001452,2]
[346491874,1735007459963,-2148.61,0.0001452,2]
[346491875,1735007459972,-1979.42,0.0001452,2]
[346491876,1735007459982,-919.1,0.0001452,2]
[346491877,1735007459992,-1423.24,0.0001452,2]
[346491878,1735007460002,-500.0,0.0001452,2]
[346491879,1735007460012,-1852.35,0.0001452,2]
[346491880,1735007460021,-705.61,0.0001452,2]
[346491881,1735007460030,-652.86,0.0001452,2]
[346491882,1735007460040,-1677.16,0.0001452,2]
[346491883,1735007460049,-774.41,0.0001452,2]
[346491884,1735007460059,-1360.94,0.0001452,2]
[346491885,1735007460068,-500.0,0.0001452,2]
[346491886,1735007460077,-5795.29,0.0001452,2]
[346491887,1735007460087,-3363.54,0.0001452,2]
[346491888,1735007460097,-1300.57,0.0001452,2]
[346491889,1735007460106,-1505.26,0.0001452,2]
[346491890,1735007460115,-1701.58,0.0001452,2]
[346491891,1735007460125,-600.17,0.0001452,2]
[346491892,1735007460134,-1373.23,0.0001452,2]
[346491893,1735007460144,-500.0,0.0001452,2]
[346491894,1735007460153,-601.28,0.0001452,2]
[346491895,1735007460162,-1001.08,0.0001452,2]
[346491896,1735007460171,-1121.55,0.0001452,2]
[346491897,1735007460180,-10929.52,0.0001452,2]